{"text_format":"1","workbook":"xlsx","n_sheets":6,"sheets":["Исходные данные_расчет","Норма отн. значения опт. потерь","Норма абс. значения опт. потерь","Расчет макс. длины ЭКУ","Хроматическая дисперсия КСР","Поляр. модовая дисперсия ЭКУ"],"not_rendered":{"charts":0,"images":1,"macros":1,"external_links":0,"defined_names":0,"comments":0,"pivot_tables":0},"unopened":[],"bounds":{"document_bytes":16777216,"sheet_cells":100000,"rows_first":2000,"rows_last":500,"rows_between":2000,"halvings":0,"cell_chars":16384,"cell_head_chars":4096},"cells_cut":0,"cells_raw":0,"read":"whole","date_system":"1900"}

{"sheet":"Исходные данные_расчет","index":0,"n_rows":30,"n_cols":19,"rows_kept":30,"cut":false,"hidden":false,"merged":[[11,0,11,7],[0,0,0,8],[4,0,4,7],[5,0,5,7],[6,0,6,7],[3,0,3,7],[7,0,7,7],[8,0,8,7],[9,0,9,7],[21,0,21,7],[26,1,26,13],[28,1,28,13],[1,0,1,17],[17,0,17,7],[18,0,18,7],[19,0,19,7],[20,0,20,7],[13,0,13,7],[12,0,12,7],[14,0,14,7],[15,0,15,7],[16,0,16,7],[8,9,8,14],[10,0,10,7],[6,9,6,14]]}
["Исходные данные"]
["Законченными элементами ВОСП являются элементарный кабельный участок (ЭКУ) н кабельная секция регенерации (КСР)"]
[]
["λ - длина волны, мкм",null,null,null,null,null,null,null,1.31,"берем из данных оборудования",null,null,null,null,"Значение может быть 1.31 или 1.55 мкм"]
["Pпер - уровень мощности оптического излучения передатчика ВОЛС, дБ",null,null,null,null,null,null,null,-15,"берем из данных оборудования"]
["Pпр - уровень чувствительности приемника, дБ",null,null,null,null,null,null,null,-28,"берем из данных оборудования"]
["Δα - погрешность измерения затухания ЭКУ,  дБ",null,null,null,null,null,null,null,0.9,"берем из паспорта на рефлектометр которым меряется ВОЛС. Возьмем условное ибо рамки погрешности 4-5%"]
["n - количество строительных длин оптического кабеля",null,null,null,null,null,null,null,1,"берем со схемы ВОЛС"]
["α - допустимый коэффициент затухания оптического волокна на i-ой строительной длине, дБ/км",null,null,null,null,null,null,null,0.36,"берем из сертификата на кабель на выбранную рабочею длину волны"]
["Li-протяженность i-ой строительной длины, км",null,null,null,null,null,null,null,1.7,"берем со схемы ВОЛС"]
["Lэку - длина оптического кабеля на измеряемом элементарном кабельном участке, км",null,null,null,null,null,null,null,4.8,"Общая длина линии. Берем со схемы ВОЛС"]
["Nc- количество неразъемных соединений (сварок) оптического волокна ЭКУ (количество оптических муфт), шт",null,null,null,null,null,null,null,4,"берем со схемы ВОЛС"]
["Количество оптических кроссов в составе ЭКУ (если имеются), шт",null,null,null,null,null,null,null,2,"берем со схемы ВОЛС"]
["Аpc - Затухание на оптических разъемных соединениях (если в составе ЭКУ есть оптические кроссы), дБ",null,null,null,null,null,null,null,{"$f":"0.1*I13","v":0.2},"берем со схемы ВОЛС. Зависит от количества оптических кроссов"]
["Ad - значение запаса энергетического потенциала на дисперсию, дБ",null,null,null,null,null,null,null,0,"берем из ТУ (контрактных спецификаций) ВОСП"]
["αcp - среднее значение коэффициента затухания, дБ/км",null,null,null,null,null,null,null,0.22,"берем из сертификата на кабель на выбранную рабочею длину волны"]
["ΔA - максимальное отклонение коэффициента затухания в используемом диапазоне длин волн от коэффициента затухания на номинальной длине волны, дБ/км",null,null,null,null,null,null,null,0.02,"берем из сертификата на кабель на выбранную рабочею длину волны"]
["σα - среднее квадратическое отклонение коэффициента затухания на номинальной длине волны",null,null,null,null,null,null,null,1E-3,"берем из сертификата на кабель на выбранную рабочею длину волны",null,null,null,null,null,null,null,null,"нет информации"]
["Kd - максимальное значение коэффициента хроматической дисперсии, пс/(нм*км)",null,null,null,null,null,null,null,3.5,"берем из сертификата на кабель"]
["Lkcp - длина KCP (кабельной секции регенерации), км",null,null,null,null,null,null,null,5,"берем со схемы ВОЛС"]
["Δλ - ширина спектра источника оптического излучения, нм",null,null,null,null,null,null,null,0.5,"берем из параметров системы передачи"]
["Kпмд - коэффициент поляризационной модовой дисперсии на номинальной длине волны для каждого ОВ каждой строительной длины ОК на номинальной длине волны, пс/км^0 5",null,null,null,null,null,null,null,0.5,"берем из параметров системы передачи"]
[]
[]
["Параметры при длине","Pпер,","Pпр,","Аn,","Аsr,","Аэзд,","Аэзв,","Ад,","Δα,","Lэку,","Aэ,","Lmax,","Dch,","Dпмд,"]
["волны, мкм:","дБ","дБ","дБ","дБ","дБ","дБ","дБ","дБ","км","дБ","км","пс","пс"]
[null,"Затухание линии №1"]
[{"$f":"I4","v":1.31},{"$f":"B30","v":-15},{"$f":"I6","v":-28},{"$f":"'Норма отн. значения опт. потерь'!I20","v":0.34},{"$f":"'Норма абс. значения опт. потерь'!I45","v":11.2},{"$f":"'Норма абс. значения опт. потерь'!I8","v":0},{"$f":"'Норма абс. значения опт. потерь'!I14","v":0},{"$f":"I15","v":0},{"$f":"I7","v":0.9},{"$f":"I11","v":4.8},{"$f":"'Расчет макс. длины ЭКУ'!I18","v":2.1800000000000002},{"$f":"'Расчет макс. длины ЭКУ'!I23","v":5.55},{"$f":"'Хроматическая дисперсия КСР'!I9","v":8.75},{"$f":"'Поляр. модовая дисперсия ЭКУ'!I8","v":8}]
[null,"Общее затухание линии"]
[{"$f":"I4","v":1.31},{"$f":"I5","v":-15},{"$f":"I6","v":-28},{"$f":"'Норма отн. значения опт. потерь'!I20","v":0.34},{"$f":"'Норма абс. значения опт. потерь'!I45","v":11.2},{"$f":"'Норма абс. значения опт. потерь'!I8","v":0},{"$f":"'Норма абс. значения опт. потерь'!I14","v":0},{"$f":"I15","v":0},{"$f":"I7","v":0.9},{"$f":"I11","v":4.8},{"$f":"'Расчет макс. длины ЭКУ'!I18","v":2.1800000000000002},{"$f":"'Расчет макс. длины ЭКУ'!I23","v":5.55},{"$f":"'Хроматическая дисперсия КСР'!I9","v":8.75},{"$f":"'Поляр. модовая дисперсия ЭКУ'!I8","v":8}]

{"sheet":"Норма отн. значения опт. потерь","index":1,"n_rows":31,"n_cols":16,"rows_kept":31,"cut":false,"hidden":false,"merged":[[1,0,1,15],[7,9,7,15],[0,0,0,15],[19,0,19,7],[10,0,10,7],[11,0,11,7],[12,0,12,7],[19,8,19,10],[15,4,15,5],[15,0,15,3],[9,0,9,7],[4,0,4,8],[6,0,6,7],[7,0,7,7],[8,0,8,7],[28,1,28,3],[26,4,26,5],[27,4,27,5],[28,4,28,5],[30,0,36,8],[21,4,21,7],[25,1,25,5],[24,0,24,5],[26,1,26,3],[27,1,27,3]]}
["Норма относительного значения оптических потерь"]
["Допустимое затухание Аn на каждом ЭКУ (элементарном кабельном участке) ВОЛС на длине волны λ "]
["Затухание ЭКУ на номинальной рабочей длине волны 1,3 мкм или 1,55 мкм, приведенное к длине 1 км An, должно быть не более:"]
[]
["            n\nАn = (∑ (αi*Li + Ac*Nc+Apc))/Lэку\n          i=1"]
[]
["n - количество строительных длин оптического кабеля",null,null,null,null,null,null,null,{"$f":"'Исходные данные_расчет'!I8","v":1},"авт. Вставляется со стр.Исходные данные_расчет"]
["α - допустимый коэффициент затухания оптического волокна на i-ой строительной длине, дБ/км",null,null,null,null,null,null,null,{"$f":"'Исходные данные_расчет'!I9","v":0.36},"авт. Вставляется со стр.Исходные данные_расчет"]
["Li-протяженность i-ой строительной длины, км",null,null,null,null,null,null,null,{"$f":"'Исходные данные_расчет'!I10","v":1.7},"авт. Вставляется со стр.Исходные данные_расчет в зависимости от номера длины"]
["Lэку - длина оптического кабеля на измеряемом элементарном кабельном участке, км",null,null,null,null,null,null,null,{"$f":"'Исходные данные_расчет'!I11","v":4.8},"авт. Вставляется со стр.Исходные данные_расчет"]
["Аc - допустимое затухание сварного сростка оптического волокна, дБ",null,null,null,null,null,null,null,{"$f":"IF('Исходные данные_расчет'!I4,0.2,0.1)","v":0.2},"авт. из таблицы 1"]
["Nc- количество неразъемных соединений (сварок) оптического волокна ЭКУ (количество оптических муфт), шт",null,null,null,null,null,null,null,{"$f":"'Исходные данные_расчет'!I12","v":4},"авт. Вставляется со стр.Исходные данные_расчет"]
["Аpc - Затухание на оптических разъемных соединениях (если в составе ЭКУ есть оптические кроссы), дБ",null,null,null,null,null,null,null,{"$f":"'Исходные данные_расчет'!I14","v":0.2},"авт. Вставляется со стр.Исходные данные_расчет"]
[]
[]
["Для проектируемой ВОЛС принята λ=",null,null,null,{"$f":"'Исходные данные_расчет'!I4","v":1.31},null,"мкм, количество строительных длин n = ",null,null,null,null,null,null,null,{"$f":"I7","v":1},"и формула соответственно принимает вид:"]
[]
[null,"An=(",{"$f":"I8","v":0.36},"*","Li","+",{"$f":"I11","v":0.2},"*","Nc","+","Apc",")/",{"$f":"I10","v":4.8}]
[]
["Аn - допустимое затухание на каждом ЭКУ ВОЛС на длине волны λ",null,null,null,null,null,null,null,{"$f":"ROUND(((I8*I9)+(I11*I12)+I13)/I10,2)","v":0.34}]
[]
[null,null,null,"Аn=",{"$f":"ROUND(I20,2)","v":0.34},null,null,null,"дБ"]
[]
[]
["Таблица 1."]
["Длина волны, мкм","Распределение потерь (дБ) в сварных сростках"]
[null,1,null,null,0.5]
["1,31","0,2",null,null,"0,1"]
["1,55","0,1*",null,null,"0,05"]
[]
["*Примечание: В отдельных сварных сростках допускается значение потерь не более 0,15 дБ, но не более 1% от общего количества соединений, если меньшее значение не достигнуто после 3-х повторений сварки, при этом в смонтированной муфте, на кассете должен остаться запас волокна из 2-х - 3-х витков необходимый для возможной переварки стыка."]

{"sheet":"Норма абс. значения опт. потерь","index":2,"n_rows":45,"n_cols":10,"rows_kept":45,"cut":false,"hidden":false,"merged":[[35,0,35,7],[34,0,34,7],[39,0,40,8],[44,0,44,7],[36,0,36,7],[36,9,36,14],[37,0,37,7],[37,9,37,14],[0,0,0,15],[1,0,1,14],[30,0,31,8],[33,0,33,7],[33,9,33,14],[24,0,24,2],[28,0,28,7],[7,0,7,7],[26,0,26,8],[3,0,3,8],[5,0,5,7],[5,9,5,14],[6,0,6,7],[34,9,34,14],[9,0,9,8],[19,0,19,2],[20,1,20,2],[20,0,21,0],[13,0,13,7],[11,0,11,7],[15,0,15,2],[12,0,12,7]]}
["Норма абсолютного значения оптических потерь"]
["Суммарное продольное затухание Asr одинаково идентифицируемых оптических волокон соединенных строительных длин, суммарные потери на их сростках, потери в станционных пигтейлах и потери на разъемных соединителях оптических кроссов, если таковые имеются в составе ЭКУ, на номинальной рабочей длине волны 1,3 мкм или 1,55 мкм, измеренное между оптическими стыками S и R, не должно быть более допустимого значения, определяемого по формуле:"]
[]
["Aezd=0,01*Lэку*(1-T/25)"]
[]
["Lэку - длина оптического кабеля на измеряемом элементарном кабельном участке, км",null,null,null,null,null,null,null,{"$f":"'Исходные данные_расчет'!I11","v":4.8},"авт. Вставляется со стр.Исходные данные_расчет"]
["Т - время эксплуатации ВОЛC, год",null,null,null,null,null,null,null,25,"Константа. 25 лет - срок службы ОК"]
["Аэзд(ezd) - эксплуатационный запас долговечности,  дБ",null,null,null,null,null,null,null,{"$f":"0.01*I6*(1-(I7/25))","v":0}]
[]
["Aezv=p*2*Anc*(25-T)*Lэку/100"]
[]
["р - средняя плотность повреждений на 100 км",null,null,null,null,null,null,null,0.2,"берем вручную из таблицы 2"]
["Anc - распределение потерь в неразъемных соединениях ЭКУ определяемое для каждого волокна по отдельности, %",null,null,null,null,null,null,null,{"$f":"IF('Исходные данные_расчет'!I4,0.2,0.1)","v":0.2},"авт. из таблицы 3"]
["Аэзв(ezv) - эксплуатационный запас на ремонтные вставки,  дБ",null,null,null,null,null,null,null,{"$f":"I12*2*I13*(25-I7)*I6/100","v":0}]
[]
["Таблица 2."]
["Средняя плотность повреждениий","Средняя плотность повреждений на 100 км подземных ВОЛП и ВОЛП с ОКГТ, подвешенным на опорах ВЛ с напряжением 110 кВ","Средняя плотность повреждений на 100 км ВОЛП с ОКГТ, подвешенным на опорах ВЛ с напряжением 220 кВ и более"]
["p",0.2,0.1]
[]
["Таблица 3."]
["Длина волны, мкм","Потери Аnc, не более, в %-тах неразъемных соединений, дБ"]
[null,1,0.5]
["1,31",0.2,0.1]
["1,55","0.1*",0.05]
["* - В исключительных случаях допускается максимальное значение потерь на стыке не более 0.15 дБ. если меньшее значение не достигнуто после трех повторений сварки. При этом в монтируемой муфте на кассете должен остаться запас оптического волокна из трех витков."]
[]
["Acab=Aezd+Aezv"]
[]
["Аcab - эксплуатационным запас энергетического потенциала для кабеля,  дБ",null,null,null,null,null,null,null,{"$f":"I8+I14","v":0}]
[]
["As=Pпер-Pпр-Acab-Ad-Δα"]
[]
[]
["Pпер - уровень мощности оптического излучения передатчика ВОЛС, дБ",null,null,null,null,null,null,null,{"$f":"'Исходные данные_расчет'!I5","v":-15},"авт. Вставляется со стр.Исходные данные_расчет"]
["Pпр - уровень чувствительности приемника, дБ",null,null,null,null,null,null,null,{"$f":"'Исходные данные_расчет'!I6","v":-28},"авт. Вставляется со стр.Исходные данные_расчет"]
["As - общие допустимые оптические потери на ЭКУ в конце срока службы оптического кабеля, дБ;",null,null,null,null,null,null,null,{"$f":"ROUND(I34-I35-I29-I37-I38,2)","v":12.1}]
["Ad - значение запаса энергетического потенциала на дисперсию, дБ",null,null,null,null,null,null,null,{"$f":"'Исходные данные_расчет'!I15","v":0},"авт. Вставляется со стр.Исходные данные_расчет"]
["Δα - погрешность измерения затухания ЭКУ,  дБ",null,null,null,null,null,null,null,{"$f":"'Исходные данные_расчет'!I7","v":0.9},"авт. Вставляется со стр.Исходные данные_расчет"]
[]
["Asr=As-Acab-Ad-Δα"]
[]
[]
[null,null,null,"Asr=",{"$f":"ROUND(I36-I29-I37-I38,2)","v":11.2},"дБ"]
[]
["Asr - допустимое значение оптических потерь на рабочей длине волны между оптическими стыками S и R, дБ",null,null,null,null,null,null,null,{"$f":"E43","v":11.2}]

{"sheet":"Расчет макс. длины ЭКУ","index":3,"n_rows":23,"n_cols":10,"rows_kept":23,"cut":false,"hidden":false,"merged":[[0,0,0,13],[1,0,1,13],[6,0,7,8],[19,0,19,8],[12,0,12,7],[2,0,3,8],[9,0,9,7],[10,0,10,7],[11,0,11,7],[21,0,21,7],[22,0,22,7],[13,0,13,7],[14,0,14,7],[15,0,15,7],[16,0,16,7],[17,0,17,7]]}
["Расчет максимальной допустимой длины ЭКУ регенерационного участка без линейных оптических усилителей"]
["Максимальная допустимая длина ЭКУ регенерационного участка ВОЛП с подземным ОК без линейных оптических усилителей рассчитывается по формуле:"]
["Lmax=As/Aэ"]
[]
[]
[]
["Aэ=((αcp+ΔA)*Lэку+(4*σα*(SQR(Lэку/Lo)))+(Anc*Lэку/Li)+(4*σnc*SQR(Lэку/Li))/Lэку"]
[]
[]
["αcp - среднее значение коэффициента затухания, дБ/км",null,null,null,null,null,null,null,{"$f":"'Исходные данные_расчет'!I16","v":0.22},"авт. Вставляется со стр.Исходные данные_расчет"]
["ΔA - максимальное отклонение коэффициента затухания в используемом диапазоне длин волн от коэффициента затухания на номинальной длине волны, дБ/км",null,null,null,null,null,null,null,{"$f":"'Исходные данные_расчет'!I17","v":0.02},"авт. Вставляется со стр.Исходные данные_расчет"]
["Lэку - длина оптического кабеля на измеряемом элементарном кабельном участке, км",null,null,null,null,null,null,null,{"$f":"'Исходные данные_расчет'!I11","v":4.8},"авт. Вставляется со стр.Исходные данные_расчет"]
["Li-протяженность i-ой строительной длины, км",null,null,null,null,null,null,null,{"$f":"'Исходные данные_расчет'!I10","v":1.7},"авт. Вставляется со стр.Исходные данные_расчет в зависимости от номера длины"]
["σα - среднее квадратическое отклонение коэффициента затухания на номинальной длине волны",null,null,null,null,null,null,null,1,"авт. Вставляется со стр.Исходные данные_расчет"]
["Lо - единичная длина, км",null,null,null,null,null,null,null,1,"Константа"]
["Anc - распределение потерь в неразъемных соединениях ЭКУ определяемое для каждого волокна по отдельности, %",null,null,null,null,null,null,null,{"$f":"'Норма абс. значения опт. потерь'!I13","v":0.2},"авт. Вставляется со стр.Норма абс. Значения опт. Потерь"]
["σnc - среднее квадратическое отклонение потерь в сростках оптического волокна, дБ",null,null,null,null,null,null,null,0,"Константа"]
["Aэ - эквивалентное значение потерь, приведенное к длине 1 км, дБ",null,null,null,null,null,null,null,{"$f":"ROUND(((I10+I11)*I12+(4*I14*(SQRT(I12/I15)))+(I16*I12/I13)+(4*I17*(SQRT(I12/I13))))/I12,2)","v":2.1800000000000002}]
[]
["Lmax=As/Aэ"]
[]
["As - общие допустимые оптические потери на ЭКУ в конце срока службы оптического кабеля, дБ;",null,null,null,null,null,null,null,{"$f":"'Норма абс. значения опт. потерь'!I36","v":12.1},"авт. Вставляется со стр.Норма абс. Значения опт. Потерь"]
["Lmax - максимальная допустимая длина ЭКУ регенерационного участка ВОЛП с подземным ОК без линейных оптических усилителей, км",null,null,null,null,null,null,null,{"$f":"ROUNDDOWN(I22/I18,2)","v":5.55}]

{"sheet":"Хроматическая дисперсия КСР","index":4,"n_rows":9,"n_cols":10,"rows_kept":9,"cut":false,"hidden":false,"merged":[[1,0,1,8],[6,0,6,7],[7,0,7,7],[8,0,8,7],[0,0,0,8],[2,0,3,8],[5,0,5,7]]}
["Хроматическая дисперсия КСР"]
["Хроматическая дисперсия КСР на номинальной рабочей длине волны, Dch, не должна быть более допустимого значения, определяемого по формуле:"]
["Dch=Kd*Lkcp*Δλ"]
[]
[]
["Kd - максимальное значение коэффициента хроматической дисперсии, пс/(нм*км)",null,null,null,null,null,null,null,{"$f":"'Исходные данные_расчет'!I19","v":3.5},"авт. Вставляется со стр.Исходные данные_расчет"]
["Lkcp - длина KCP (кабельной секции регенерации), км",null,null,null,null,null,null,null,{"$f":"'Исходные данные_расчет'!I20","v":5},"авт. Вставляется со стр.Исходные данные_расчет"]
["Δλ - ширина спектра источника оптического излучения, нм",null,null,null,null,null,null,null,{"$f":"'Исходные данные_расчет'!I21","v":0.5},"авт. Вставляется со стр.Исходные данные_расчет"]
["Dch - хроматическая дисперсия КСР на номинальной рабочей длине волны, пс",null,null,null,null,null,null,null,{"$f":"I6*I7*I8","v":8.75}]

{"sheet":"Поляр. модовая дисперсия ЭКУ","index":5,"n_rows":8,"n_cols":10,"rows_kept":8,"cut":false,"hidden":false,"merged":[[7,0,7,7],[0,0,0,8],[1,0,1,8],[2,0,3,8],[5,0,5,7],[6,0,6,7]]}
["Поляризационная модовая дисперсия ЭКУ"]
["Поляризационная модовая дисперсия ЭКУ, Dпмд, на номинальной рабочей длине волны не должна быть более допустимого значения, определяемого по формуле:"]
["Dпмд=Kпмд*Lkcp^0.5"]
[]
[]
["Kпмд - максимальное значение коэффициента поляризационной модовой дисперсии данного типа ОВ, пс/км^0 5",null,null,null,null,null,null,null,{"$f":"'Исходные данные_расчет'!I19","v":3.5},"авт. Вставляется со стр.Исходные данные_расчет"]
["Lkcp - длина KCP (кабельной секции регенерации), км",null,null,null,null,null,null,null,{"$f":"'Исходные данные_расчет'!I20","v":5},"авт. Вставляется со стр.Исходные данные_расчет"]
["Dпмд - поляризационная модовая дисперсия ЭКУ, на номинальной рабочей длине волны, пс",null,null,null,null,null,null,null,{"$f":"ROUND(I6*(I7^0.5),0)","v":8}]